Cogmind - Beta 13 @@@ ROGUE MODE // 2024.05.12 @ 20:32:35 Player: Olafz Result: Destroyed by L-31 Rogue with Katana Performance ------------- Evolutions (2) 1000 Regions Visited (5) 1000 Robots Destroyed (56) 280 Value Destroyed (1572) 1572 Prototype IDs (7) 140 Alien Tech Used (0) 0 Bonus (36) 36 TOTAL SCORE: 4028 Bonus ------- High Alert Combat Kills 35 Follower Combat Kills 14 Friendly Fire -13 Cogmind --------- Core Integrity 0/550 Matter 300/300 Energy 44/100 System Corruption 0% Temperature Cool (-98) Movement Treading (160) Location -8/Materials Parts ------- > --- POWER (1) -------- (None) > --- PROPULSION (2) --- Medium Treads Medium Treads > --- UTILITY (6) ------ Cryofiber Web Improved Heat Sink Large Storage Unit Structural Scanner Machine Analyzer > --- WEAPON (2) ------- Heavy Particle Gun > --- INVENTORY (15) --- Medium Treads Faulty Improved VTOL Module Faulty Improved VTOL Module Large Storage Unit Experimental Sensor Array Improved Signal Interpreter Improved Medium Laser Heavy Laser Precision Assault Rifle Improved Grenade Launcher Plasma Cutter Scythe Ripper Peak State ------------ > --- POWER ------------ Light Nuclear Core > --- PROPULSION ------- Medium Treads Medium Treads > --- UTILITY ---------- Cryofiber Web Improved Heat Sink Improved Heat Sink Large Storage Unit Structural Scanner Machine Analyzer > --- WEAPON ----------- Heavy Laser Precision Assault Rifle > --- INVENTORY -------- Light Nuclear Core Medium Treads Medium Treads Improved Aluminum Leg Carbon-fiber Leg Improved VTOL Module Improved VTOL Module Large Storage Unit Structural Scanner Experimental Sensor Array Precision Assault Rifle Improved Grenade Launcher Plasma Cutter Scythe Ripper [Rating: 39] Favorites ----------- Power Light Nuclear Core Engine Light Angular Momentum Engine Power Core Light Nuclear Core Propulsion Improved Aluminum Leg Treads Medium Treads Leg Improved Aluminum Leg Wheel Wheel Utility Large Storage Unit Device Improved Heat Sink Storage Large Storage Unit Processor Machine Analyzer Protection Reactive Plating Weapon Light Assault Rifle Energy Gun Heavy Laser Ballistic Gun Light Assault Rifle Ballistic Cannon Flak Cannon Launcher Improved Grenade Launcher Build | -11 -10 -10 -9 -9 -8 ------- Run | Yrd Mat Min Mat Min Mat Slots Evolved 4 | . . . 2 . 2 Power . | . . . . . . Propulsion . | . . . . . . Utility 4 | . . . 2 . 2 Weapon . | . . . . . . Parts Attached 55 | . 4 4 11 1 35 Power 10 | . . 1 2 . 7 Engine 6 | . . 1 2 . 3 Core 4 | . . . . . 4 Reactor . | . . . . . . Propulsion 15 | . 3 . 4 1 7 Treads 3 | . . . . . 3 Leg 7 | . . . 3 . 4 Wheel 5 | . 3 . 1 1 . Hover . | . . . . . . Flight . | . . . . . . Utility 12 | . 1 1 3 . 7 Device 8 | . . 1 1 . 6 Storage 2 | . 1 . 1 . . Processor 1 | . . . 1 . . Hackware . | . . . . . . Protection 1 | . . . . . 1 Artifact . | . . . . . . Weapon 18 | . . 2 2 . 14 Energy Gun 12 | . . . 1 . 11 Energy Cannon . | . . . . . . Ballistic Gun 4 | . . 2 1 . 1 Ballistic Cannon 1 | . . . . . 1 Launcher 1 | . . . . . 1 Special Weapon . | . . . . . . Impact Weapon . | . . . . . . Slashing Weapon . | . . . . . . Piercing Weapon . | . . . . . . Special Melee Weapon . | . . . . . . Unidentified Prototypes 5 | . . . 1 . 4 Parts Lost 18 | . 2 . 2 . 14 Power 5 | . . . . . 5 Propulsion 4 | . 1 . . . 3 Utility 3 | . . . 1 . 2 Weapon 6 | . 1 . 1 . 4 Highest Loss Streak 5 | . 2 . 1 . 5 To Critical Strikes . | . . . . . . Average Slot Usage (%) 84 | . 78 86 80 84 86 Engine 8 | . 14 14 10 11 3 Core 2 | . . . . . 5 Treads 3 | . . . . . 7 Leg 7 | . 7 . 12 15 6 Wheel 8 | . 19 28 9 3 2 Device 15 | . . 1 13 11 25 Storage 10 | . 14 14 11 11 9 Processor 5 | . . . 1 11 9 Protection 1 | . . . . . 2 Energy Gun 9 | . 7 . 6 11 13 Ballistic Gun 9 | . 14 28 15 11 . Naked Turns . | . . . . . . Heaviest Build 113 | 11 86 93 113 33 45 Greatest Support 56 | 20 20 20 26 28 56 Greatest Overweight (x) 8 | . 8 4 5 1 1 Average Overweight (x) 1 | . 2 4 1 1 . Largest Inventory Capacity 25 | . 25 25 25 15 15 Average Capacity 16 | . 20 25 15 15 15 Most Carried 15 | . 9 13 15 15 15 Average Carried 13 | . 7 9 13 14 14 Final Capacity 25 | 8 25 25 15 15 15 Final Carried 15 | 6 9 13 14 15 14 Class Distribution -------------------- 69% | Mutant 30% | Scavenger-Mutant Dominant Class ---------------- Mutant | -10/Materials Mutant | -10/Mines Mutant | -9/Materials Mutant | -9/Mines Scavenger-Mutant | -8/Materials Resources | -11 -10 -10 -9 -9 -8 ----------- Run | Yrd Mat Min Mat Min Mat Matter Collected 998 | 191 13 104 92 . 598 Remotely . | . . . . . . Salvage Created 1624 | . 25 65 371 . 1163 Parts 114 | . 5 10 27 . 72 Haulers Intercepted 1 | . . . . . 1 Recyclers Shooed 4 | . . 2 . . 2 Parts Field Recycled . | . . . . . . Retrieved Matter . | . . . . . . Parts Self-Destructed . | . . . . . . Prevented . | . . . . . . Kills | -11 -10 -10 -9 -9 -8 ------- Run | Yrd Mat Min Mat Min Mat Combat Hostiles Destroyed 45 | . . 4 12 . 29 Melee 1 | . . . . . 1 Guns 37 | . . 4 12 . 21 Cannons 4 | . . . . . 4 AOE 3 | . . . . . 3 Classes Destroyed 9 | . 2 1 4 . 2 Worker 4 | . 1 . 1 . 2 Builder 2 | . 1 . . . 1 Hauler 1 | . . . . . 1 Mechanic 1 | . . . 1 . . Operator 1 | . . . . . 1 Watcher 2 | . . . 2 . . Swarmer 17 | . . 4 6 . 7 Grunt 19 | . . . 3 . 16 Sentry 9 | . . . 3 . 6 Best Kill Streak 6 | . 2 3 5 . 6 Combat Bots Only 5 | . . 3 3 . 5 Max Kills in Single Turn 4 | . 1 1 1 . 4 Gunslinging . | . . . . . . Exploded 3 | . . . . . 3 Melee 1 | . . . . . 1 Uniques/NPCs Destroyed . | . . . . . . Combat | -11 -10 -10 -9 -9 -8 -------- Run | Yrd Mat Min Mat Min Mat Hostile Shots Fired 343 | . . 23 46 3 271 Missed 102 | . . 5 11 . 86 Damage Taken 3519 | . 209 137 393 31 2749 Core 800 | . 124 22 81 10 563 Absorbed by Shields . | . . . . . . Ignored by Resistances 23 | . . . . . 23 Core Remaining (%) 72 | 100 . 41 . 77 . Volleys Fired 165 | . 6 13 42 2 102 Largest 2 | . 2 2 2 2 2 Hottest 134 | . 60 40 85 85 134 Shots Fired 284 | . 10 26 82 4 162 Gun 257 | . 10 26 82 4 135 Cannon 25 | . . . . . 25 Launcher 2 | . . . . . 2 Special . | . . . . . . Kinetic 111 | . 6 26 51 2 26 Thermal 167 | . . . 31 2 134 Explosive 2 | . . . . . 2 Electromagnetic 4 | . 4 . . . . Robot Hit Streak 22 | . 1 5 22 2 22 Robot Miss Streak 6 | . 2 4 6 6 6 Penetration Max . | . . . . . . Secondary Targets 6 | . . . 2 . 4 Max Gunslinging Chain 1 | . . . 1 . 1 Shots Hit Robots 199 | . 4 16 56 3 120 Core Hits 132 | . 3 6 48 3 72 Critical Kills . | . . . . . . Critical Parts Destroyed . | . . . . . . Critical Strikes 7 | . . . . . 7 Burn 7 | . . . . . 7 Melee Attacks . | . . . . . . Impact . | . . . . . . Slashing . | . . . . . . Piercing . | . . . . . . Sneak Attacks . | . . . . . . Combat Hostiles . | . . . . . . Follow-up Attacks . | . . . . . . Damage Inflicted 3481 | . 70 157 666 37 2551 Guns 2792 | . 33 157 666 37 1899 Cannons 409 | . . . . . 409 Explosions 260 | . 37 . . . 223 Melee . | . . . . . . Ramming 20 | . . . . . 20 Kinetic 907 | . 33 157 273 15 429 Thermal 2294 | . . . 393 22 1879 Explosive 260 | . 37 . . . 223 Electromagnetic . | . . . . . . Impact . | . . . . . . Slashing . | . . . . . . Piercing . | . . . . . . Highest Corruption . | . . . . . . Average Corruption . | . . . . . . Corruption Purged . | . . . . . . Corruption Blocked . | . . . . . . Overload Shots . | . . . . . . Overflow Damage 71 | . 69 . . . 2 Projectiles . | . . . . . . Explosions 71 | . 69 . . . 2 Melee . | . . . . . . Knockbacks 10 | . . . . . 10 Impact 1 | . . . . . 1 Kinetic 8 | . . . . . 8 Secondary 1 | . . . . . 1 Self-Inflicted Damage 247 | . 209 . . . 38 Shots 3 | . 2 . . . 1 Rammed 2 | . . . . . 2 Targets Rammed 3 | . . . . . 3 Kicked . | . . . . . . Crushed 1 | . . . . . 1 Highest Temperature 450 | . 20 . 228 92 450 Average Temperature 113 | . 15 . 77 51 132 Received Heat Transfer 1488 | . . . 102 18 1368 Effects 2 | . . . . . 2 Shutdowns 2 | . . . . . 2 Siege Activations . | . . . . . . Robots Corrupted . | . . . . . . Combat Hostiles . | . . . . . . Parts Fried . | . . . . . . Impact Corruptions . | . . . . . . Robots Melted . | . . . . . . Combat Hostiles . | . . . . . . Parts Melted 8 | . . . . . 8 Heat Transferred 4733 | . . . 490 25 4218 Parts Sabotaged . | . . . . . . Parts Stolen . | . . . . . . Parts Stripped . | . . . . . . Power Chain Reactions . | . . . . . . Alert | -11 -10 -10 -9 -9 -8 ------- Run | Yrd Mat Min Mat Min Mat Peak Influence 460 | . 79 152 311 45 460 Initial 59 | . . 30 59 45 17 Average 184 | . 33 107 154 45 287 Maximum Alert Level 2 | . . . 1 . 2 Low Security (%) 60 | . 100 100 79 100 21 Level 1 36 | . . . 20 . 72 Level 2 2 | . . . . . 6 Level 3 . | . . . . . . Level 4 . | . . . . . . Level 5 . | . . . . . . High Security . | . . . . . . Max Security . | . . . . . . Squads Dispatched 10 | . . . 2 1 7 Investigation 3 | . . . . 1 2 Extermination . | . . . . . . Reinforcement 3 | . . . 2 . 1 Assault . | . . . . . . Garrison 4 | . . . . . 4 Intercept . | . . . . . . Searches Triggered . | . . . . . . Construction Impeded . | . . . . . . Haulers Reinforced . | . . . . . . Active Scanning Responses . | . . . . . . Cargo Convoy Interrupts . | . . . . . . Stealth | -11 -10 -10 -9 -9 -8 --------- Run | Yrd Mat Min Mat Min Mat Distress Signals 3 | . . . 1 . 2 Communications Jammed . | . . . . . . Distress Signals . | . . . . . . Times Spotted 66 | . 1 4 18 3 40 Peak Tracking Total 8 | . . 3 4 3 8 Tactical Retreats 2 | . . . 1 . 1 Traps | -11 -10 -10 -9 -9 -8 ------- Run | Yrd Mat Min Mat Min Mat Traps Triggered 2 | . . . . . 2 Indirectly . | . . . . . . Trap Hack Attempts . | . . . . . . Triggered . | . . . . . . Disarmed . | . . . . . . Reprogrammed . | . . . . . . Reused . | . . . . . . Traps Extracted . | . . . . . . Installed . | . . . . . . Triggered . | . . . . . . Machines | -11 -10 -10 -9 -9 -8 ---------- Run | Yrd Mat Min Mat Min Mat Machines Disabled 5 | . 3 . . . 2 Max in Single Turn 3 | . 3 . . . 1 Machines Repaired . | . . . . . . Machines Dismantled . | . . . . . . Machines Sabotaged . | . . . . . . Overloaded Fab Kills . | . . . . . . Hacking | -11 -10 -10 -9 -9 -8 --------- Run | Yrd Mat Min Mat Min Mat Machines Accessed 3 | . . . 2 1 . Terminals 2 | . . . 2 . . Fabricators . | . . . . . . Repair Stations . | . . . . . . Recycling Units . | . . . . . . Scanalyzers . | . . . . . . Garrison Access . | . . . . . . Total Hacks 4 | . . . 3 1 . Successful 4 | . . . 3 1 . Failed . | . . . . . . Catastrophic . | . . . . . . Database Lockouts . | . . . . . . Manual . | . . . . . . Terminals 3 | . . . 3 . . Fabricators . | . . . . . . Repair Stations . | . . . . . . Recycling Units . | . . . . . . Scanalyzers . | . . . . . . Garrison Access . | . . . . . . Terminal Hacks 4 | . . . 3 1 . Prototype ID Bank 1 | . . . 1 . . Open Door 1 | . . . . 1 . Unreport Threat 1 | . . . 1 . . Zone Layout 1 | . . . 1 . . Fabricator Hacks . | . . . . . . Repair Station Hacks . | . . . . . . Recycling Unit Hacks . | . . . . . . Scanalyzer . | . . . . . . Garrison Access Hacks . | . . . . . . Unauthorized Hacks . | . . . . . . Terminals . | . . . . . . Fabricators . | . . . . . . Repair Stations . | . . . . . . Recycling Units . | . . . . . . Scanalyzers . | . . . . . . Garrison Access . | . . . . . . Data Cores Recovered . | . . . . . . Used . | . . . . . . Hacking Detections 1 | . . . 1 . . Full Trace Events . | . . . . . . Feedback Events . | . . . . . . Feedback Blocked . | . . . . . . Robot Schematics Acquired . | . . . . . . Robots Built . | . . . . . . Authchips . | . . . . . . Time . | . . . . . . Total Robot Build Rating . | . . . . . . Part Schematics Acquired . | . . . . . . Parts Built . | . . . . . . Authchips . | . . . . . . Time . | . . . . . . Total Part Build Rating . | . . . . . . Parts Repaired . | . . . . . . Time . | . . . . . . Parts Recycled . | . . . . . . Recycled Matter . | . . . . . . Retrieved Matter . | . . . . . . Retrieved Components . | . . . . . . Parts Scanalyzed . | . . . . . . Part Schematics Acquired . | . . . . . . Parts Damaged . | . . . . . . Bothacking | -11 -10 -10 -9 -9 -8 ------------ Run | Yrd Mat Min Mat Min Mat Used RIF Installer . | . . . . . . Robots Hacked . | . . . . . . Non-combat . | . . . . . . Combat . | . . . . . . Robot Hacks Applied . | . . . . . . Relay Couplers Released . | . . . . . . Fabnet Peak Effective % . | . . . . . . Robots Rewired . | . . . . . . Allies Hacked . | . . . . . . Hacks Repelled . | . . . . . . Allies | -11 -10 -10 -9 -9 -8 -------- Run | Yrd Mat Min Mat Min Mat Total Allies 1 | . . 1 . . . Largest Group 1 | . . 1 . . . Highest-Rated Group 31 | . . 31 . . . Highest-Rated Ally 31 | . . 31 . . . Total Orders . | . . . . . . Ally Attacks 12 | . . 12 . . . Total Damage 81 | . . 81 . . . Kills 2 | . . 2 . . . Allies Corrupted . | . . . . . . Allies Melted . | . . . . . . Intel | -11 -10 -10 -9 -9 -8 ------- Run | Yrd Mat Min Mat Min Mat Robot Analysis Total . | . . . . . . Derelict Logs Recovered 1 | . . . . 1 . Drone Launches . | . . . . . . Drone Recoveries . | . . . . . . Exploration | -11 -10 -10 -9 -9 -8 ------------- Run | Yrd Mat Min Mat Min Mat Turns Passed 2442 | . 185 347 509 311 1090 Spaces Moved 1243 | 1 121 205 268 188 460 Core . | . . . . . . Treads 225 | . . . . . 225 Legs 385 | 1 41 . 97 114 132 Wheels 633 | . 80 205 171 74 103 Hover . | . . . . . . Flight . | . . . . . . Fastest Speed 90 | 120 120 140 90 115 100 Average Speed 147 | 120 134 140 132 160 158 Slowest Speed 260 | 120 200 140 260 190 190 Overloaded Moves . | . . . . . . Propulsion Burnouts . | . . . . . . Robots Hopped . | . . . . . . Cave-ins Triggered . | . . . . . . Exploration Rate (%) 33 | 2 32 46 33 55 35 Regions Visited 5 Branch Regions 2 Pre-discovered Areas 1 | . . . . 1 . Known Exits Taken . | . . . . . . Unknown Exits Taken 5 | 1 1 1 1 1 . Scrap Searched 2 | . . 2 . . . Spaces Dug . | . . . . . . Terrain Destroyed 56 | . 42 . . . 14 Melee . | . . . . . . Projectile 2 | . . . . . 2 AOE 54 | . 42 . . . 12 Terrain Rammed . | . . . . . . Walls Destroyed . | . . . . . . Machines Disabled . | . . . . . . Actions | -11 -10 -10 -9 -9 -8 --------- Run | Yrd Mat Min Mat Min Mat Total 1587 | . 135 240 350 195 667 Wait 40 | . . 16 6 . 18 Move 1238 | . 120 204 267 187 460 Hop . | . . . . . . Pick Up 32 | . 2 3 8 1 18 Fast Attach 29 | . 2 1 8 1 17 Attach 13 | . 2 1 1 . 9 Detach 12 | . 3 . 2 2 5 Swap 13 | . . 2 2 . 9 Drop 42 | . . . 14 2 26 Fire 165 | . 6 13 42 2 102 Melee . | . . . . . . Ram 2 | . . . . . 2 Kick . | . . . . . . Crush 1 | . . . . . 1 Escape Stasis . | . . . . . . Rewire . | . . . . . . Trap . | . . . . . . Miscellaneous . | . . . . . . Route ------- -11/Scrapyard -10/Materials -10/Mines -9/Materials -9/Mines -8/Materials (discovered 1 exit: [*Fac]) History --------- Turn | Location | Event 1 | -11/Scrapyard | Discovered new exit (range 0) 1 | -11/Scrapyard | Entered Materials 159 | -10/Materials | Discovered new exit (range 15) 186 | -10/Materials | Entered Mines 198 | -10/Mines | Core integrity fell below 50% 302 | -10/Mines | Build established: Mutant 323 | -10/Mines | Found a damaged Exp. Sensor Array with a note attached 326 | -10/Mines | Found Prototype Device 340 | -10/Mines | Received a Mining Laser from a helpful Derelict 515 | -10/Mines | Discovered new exit (range 8) 533 | -10/Mines | Entered Materials 533 | -9/Materials | Evolved 2 slots: Utility x2 900 | -9/Materials | Discovered new exit (range 8) 1042 | -9/Materials | Entered Mines 1065 | -9/Mines | A weapon hastily lodged in a ceiling crevice suddenly fell to the ground 1216 | -9/Mines | Learned location of Zion (-6) 1253 | -9/Mines | Met a Derelict shopkeep closing up shop 1336 | -9/Mines | Discovered new exit (range 10) 1353 | -9/Mines | Entered Materials 1353 | -8/Materials | Evolved 2 slots: Utility x2 1481 | -8/Materials | Garrison activated, responded to threat 1805 | -8/Materials | Build established: Scavenger-Mutant 1822 | -8/Materials | Garrison activated, responded to threat 1860 | -8/Materials | Core integrity fell below 50% 1898 | -8/Materials | Lost 5 parts (2p1n1u1w) 2274 | -8/Materials | Discovered new exit (range 15) 2345 | -8/Materials | Build established: Mutant 2431 | -8/Materials | Core integrity fell below 20% 2443 | -8/Materials | Destroyed by L-31 Rogue with Katana Last Messages --------------- U-05 Engineer builds a Wall. Particle Charger destroyed. G-47 Trooper heat damages Particle Gun, Aluminum Leg, Imp. Heat Sink. Destroyed Aluminum Leg. G-47 Trooper overheating. G-47 Trooper heat damages Particle Gun. W-25 Informer sends out distress signal. Critical hit (Burn: +37). G-47 Trooper heat short circuits Aluminum Leg. Acquired 55 matter. Crushed S-10 Pest. S-10 Pest destroyed. Lgt. Nuclear Core destroyed. K-01 Serf collects debris. R-06 Scavenger collects Flight Unit. R-06 Scavenger collects Lgt. Ion Engine. G-47 Trooper overheating. G-47 Trooper heat short circuits Imp. Heat Sink. Hvy. Particle Gun destroyed. G-47 Trooper heat damages core (-12). Map ----- +----------------------------------------------------+ | ????????????????##%%##????????????????????? | | ????????????????##[ ### ## ???????????? | | ???????????????? / ###+#######???????????? | | ???????????????? #!!# ##???????????? | | ???????????????? #=%# """ ##???????????? | | ???????????????? #|=# """ ##???????????? | | ???????????????? # !# """ ##???????????? | | ???????????????? # + ##???????????? | | ????????????????## # ##???????????? | | ????????????????## # !!! ##???????????? | | ????????????????##r #! !! [ ##???????????? | | ????????????????##k # !! ##???????????? | | ????????????????## ######+####???????????? | | ????????????????## g###### ####???????????? | | ????????????????##w ##??## ####???????????? | | ????????????????## ###### #####??????????? | | ????????????????## g######+#%###??????????? | | ????????????????## # | *=##??????????? | | ????????????????## #[ ##??????????? | | ????????????????## # ! ##??????????? | | ????????????????##g # """ ##??????????? | | ????????????????##[ # """ ""##??????????? | | ????????????????## # """ T"##??????????? | | ????????????????##r # ""###########?? | | ???????????####### # ############# | | ???????????#######@l###+########## #### | | ???????????## a | | ???????????## < % | | ???????????## | | ???????????##### ################# #### | | ???????????##### ###################+###### | | ??????????????## ??????? # ##?? | | ??????????????## ??????? # ##?? | | ?????????????? ??????? # ##?? | | ??????????????## ? ? # ##?? | | ??????????????## ?#####?## ##?? | | ??????????????????## ## ##?? | | ??????????????????## "" ########+########## | | ??????????????## ?## T" # ######## | | ??????????????## ? # "" # ##???## | | ?????????####### # # ##???## | | ?????????####### # + ##???## | | ?????????## #= ###### ##???## | | ?????????## # ###### ####### | | ?????????## # ###### ####### | | ?????????## ########### ###"T"## | | ?????????### ^ | | ?????????? #^ % | | ????????? + """ !!! ^^ * | | ?????????? # * " !! * | +----------------------------------------------------+ Best States ------------- Heat Dissipation 59 Energy Generation 18 Energy Capacity 280 Matter Stores 300 Matter Capacity 300 Sight Range 16 Terrain Scan Density 10 Base Temperature (-) 100 Armor Coverage 150 Resistance: KI 20 Evasion (%) 55 Recoil Reduction 2 Particle Charging 15 Item Schematics ----------------- None Robot Schematics ------------------ None Fabricated ------------ Nothing Alien Tech Used ----------------- None Achievements -------------- None Challenges ------------ None Game ------ Seed AssemblyDefenseBiocell Manual? 0 Play Time 00:28:48 Cumulative 143.7 hours Start 2024.05.12 @ 16:46:28 End 2024.05.12 @ 20:32:35 Sessions 3 Manual Loads 0 Difficulty Rogue Special Mode None Game No. 233 Rogue 231 Adventurer 2 Explorer 0 Win Type - Total 4 Types 3/0/0/1/0/0/0/0/0 Lore% 61 Gallery% 65 Achievement% 51 Wizard Run 0 Options --------- Layout 0 ASCII 0 Keyboard 1 Movement Numpad Keybinds 1 Fullscreen 2 Font 18/SmallcapsGlow Map View 76x50 Zoom Use 0% Tactical HUD 1 Map Filters NONE Filters NONE Steam 1 RUN: 0945a1e0-cff7-4641-9933-ce81db516ab4